[Event "FIDE WY-U16 Olympiad 2022"]
[Site "Nakhchivan"]
[Date "2022.10.05"]
[Round "4.18"]
[White "Khamdamova, Afruza"]
[Black "Pranesh M"]
[Result "1/2-1/2"]
[ECO "C78"]
[WhiteElo "2118"]
[BlackElo "2442"]
[Annotator "TA"]
[PlyCount "160"]
[EventDate "2022.10.02"]
[EventType "team-tourn"]
[EventCountry "AZE"]
[SourceTitle "playchess.com"]
[Source "ChessBase"]
[SourceQuality "1"]
[WhiteTeam "Uzbekistan"]
[BlackTeam "India"]
[WhiteTeamCountry "UZB"]
[BlackTeamCountry "IND"]
[TimeControl "40/5400+30:1800+30"]

{[%evp 16,160,38,26,50,26,18,22,27,-5,0,0,0,0,-12,-19,-10,-12,49,0,0,0,0,0,51,47,58,62,70,66,58,54,66,55,65,53,114,104,99,99,257,272,377,177,174,182,254,277,256,251,258,268,302,256,323,332,442,455,493,478,642,656,648,642,620,601,586,177,171,152,476,347,500,453,608,604,641,641,565,604,655,655,655,641,648,648,641,633,626,605,605,605,564,564,554,539,532,532,532,532,525,525,525,517,512,517,517,517,517,516,517,510,502,495,487,487,472,458,450,274,283,275,275,275,260,0,177,177,177,0,0,0,0,0,0,0,0,0,0,0,0,0,0,0,0,0,0]} 1. e4 {[%emt 0:00:04]} e5 {[%emt 0:00:14]} 2. Nf3 {[%emt 0:00:06]} Nc6 {[%emt 0:00:07]} 3. Bb5 {[%emt 0:00:07]} a6 {[%emt 0:00:09]} 4. Ba4 {[%emt 0:00:10]} Nf6 {[%emt 0:00:18]} 5. O-O {[%emt 0:00:09]} b5 {[%emt 0:00:17]} 6. Bb3 {[%emt 0:00:06]} Bc5 {[%emt 0:00:05]} 7. c3 {[%emt 0:00:06]} d6 {[%emt 0:00:07]} 8. d4 {[%emt 0:00:06]} Bb6 {[%emt 0:00:12]} 9. a4 {[%emt 0:00:06] 9.Be3 is the modern continuation.} Bg4 {[%emt 0:01:06] C78: Ruy Lopez: Archangelsk and Möller Defences.} 10. Bg5 {[%emt 0:14:08][%cal Bc1g5,Bg5h4,Bh4g3][%mdl 32] And now Bd5 would win.} (10. h3 $5 {[%cal Rh3g4]} Bxf3 11. Qxf3 $11) 10... Rb8 {[%emt 0:02:01]} 11. Bd5 {[%emt 0:07:51]} Ne7 {[%emt 0:01:16]} 12. dxe5 {[%emt 0:08:44]} (12. Bxf6 {feels hotter.} gxf6 13. h3 Bh5 14. Bb3) 12... Nfxd5 {[%emt 0:00:59]} 13. exd6 {[%emt 0:01:37] [#]} Qxd6 $146 {[%emt 0:00:48][%cal Od6g6]} ({Predecessor:} 13... Nxc3 14. Nxc3 cxd6 15. Nd5 f6 16. Bxf6 {1-0 (16) Cabezas Ayala,I (2317)-Fernandez Salmeron,R Almendralejo 2003}) 14. exd5 {[%emt 0:00:07]} f6 {[%emt 0:01:20]} 15. Bh4 {[%emt 0:04:01]} O-O {[%emt 0:08:29][%mdl 1024] Black has compensation.} 16. Bg3 {[%emt 0:02:00]} Qd7 {[%emt 0:04:28]} (16... Qxd5 $11 17. Qxd5+ Nxd5) 17. a5 {[%emt 0:05:47]} (17. d6 $14 cxd6 18. Qxd6) 17... Bc5 $11 {[%emt 0:00:31]} 18. b4 {[%emt 0:09:40]} Bd6 {[%emt 0:01:15]} 19. Nbd2 {[%emt 0:04:04]} Bxg3 {[%emt 0:01:43]} (19... Nxd5 $11 20. Re1 Rfe8) 20. hxg3 $14 {[%emt 0:00:06]} Nxd5 {[%emt 0:02:15]} 21. Ne4 {[%emt 0:03:54]} Qf7 {[%emt 0:04:59]} 22. Qd4 {[%emt 0:06:16]} Rbd8 {[%emt 0:01:47]} 23. Nc5 {[%emt 0:00:12][%csl LRa6,LRg4]} Bc8 {[%emt 0:01:36]} 24. Rfd1 {[%emt 0:01:00]} Rd6 {[%emt 0:03:03]} 25. Rac1 {[%emt 0:04:12]} g5 {[%emt 0:03:22]} ({Better is} 25... Nb6 $14 26. Qe4 Re8) 26. Ne4 $36 {[%emt 0:03:50][%mdl 2048] White has strong initiative. Pair of Knights!} Rd7 {[%emt 0:04:54]} 27. Qc5 {[%emt 0:01:26][%cal Oe4g5] Nexg5! is the strong threat. White has more active pieces.} Bb7 $2 {[%emt 0:04:47] [#]} (27... Re8 $16 28. Rd4 g4) 28. c4 $1 $18 {[%emt 0:02:50]} Re8 {[%emt 0:11:53]} 29. Nexg5 {[%emt 0:04:45]} (29. cxd5 Rxe4 30. Qa7 Bxd5 $14) (29. Qd4 $142) 29... fxg5 {[%emt 0:00:13]} 30. cxd5 {[%emt 0:00:04]} h6 {[%emt 0:04:20]} (30... Rxd5 $142 31. Rxd5 Qxd5) 31. Qa7 {[%emt 0:07:55]} Bxd5 {[%emt 0:03:15]} 32. Qxa6 {[%emt 0:00:05]} c6 {[%emt 0:00:57]} 33. Qb6 {[%emt 0:01:31]} Qf8 {[%emt 0:01:49]} 34. Re1 {[%emt 0:05:17]} Be4 {[%emt 0:02:41]} 35. a6 {[%emt 0:01:56][%cal Ba5a6,Ba6a7][%mdl 32] Hoping for a7.} g4 {[%emt 0:00:59]} 36. Nh4 {[%emt 0:00:37]} Qxb4 {[%emt 0:04:47]} 37. a7 {[%emt 0:00:20]} Rdd8 {[%emt 0:05:43] [#]} 38. Rxe4 $1 {[%emt 0:02:33][%mdl 512]} Qxe4 {[%emt 0:00:11]} 39. Rxc6 {[%emt 0:00:01] Intending Rg6+ and mate.} Rd7 {[%emt 0:02:33]} 40. Rxh6 {[%emt 0:01:48]} Rh7 {[%emt 0:01:29]} 41. Rxh7 {[%emt 0:10:52]} (41. Rg6+ Rg7 42. Rd6) 41... Kxh7 {[%emt 0:02:50]} 42. Qxb5 {[%emt 0:00:10][%mdl 4096] Endgame KQR-KQN. Chess con chili.} Kh6 {[%emt 0:08:28] Inhibits Qh5+.} (42... Ra8 $16 {is more resistant.}) 43. Qb6+ {[%emt 0:10:02]} Kh7 {[%emt 0:01:06]} (43... Kg7 {was worth a try.} 44. Qb2+ Kf7) 44. Qc7+ {[%emt 0:00:06]} Kg8 {[%emt 0:00:32]} 45. Qd7 {[%emt 0:01:08] White wants to mate with Nf5.} Ra8 {[%emt 0:03:32]} 46. Nf5 {[%emt 0:00:32][%csl Gf5][%cal Rd7g7]} Rxa7 {[%emt 0:00:13]} 47. Qxa7 {[%emt 0:01:35][%csl Gf5][%cal Ra7g7]} (47. Nh6+ Kh8 48. Qxg4 (48. Qxa7 Qxg2+ 49. Kxg2 $11) 48... Ra1+ 49. Kh2 Qxg4 50. Nxg4 Kh7 $16) 47... Qb1+ {[%emt 0:00:08]} 48. Kh2 {[%emt 0:00:05][%csl Gf5][%cal Ra7g7]} Qxf5 {[%emt 0:00:05] KQ-KQ} 49. Qb8+ {[%emt 0:00:54]} Kg7 {[%emt 0:00:10]} 50. Qc7+ {[%emt 0:01:00]} Kg8 {[%emt 0:00:11]} 51. Qc4+ {[%emt 0:01:21]} Kg7 {[%emt 0:00:11]} 52. Qd4+ {[%emt 0:00:44]} Kg8 {[%emt 0:00:06]} 53. Qd8+ {[%emt 0:01:21]} Kg7 {[%emt 0:00:08]} 54. Qe7+ {[%emt 0:00:05]} Kg8 {[%emt 0:00:07]} 55. Qe2 {[%emt 0:00:23]} Qh7+ {[%emt 0:00:27]} 56. Kg1 {[%emt 0:00:02]} Qb1+ {[%emt 0:00:04]} 57. Qf1 {[%emt 0:00:03]} Qc2 {[%emt 0:00:09]} 58. Qe1 {[%emt 0:00:43]} Kf7 {[%emt 0:00:22] [#] Against Qe6+} 59. Qa1 $1 {[%emt 0:01:46]} Qf5 {[%emt 0:01:03]} 60. Qd1 {[%emt 0:01:02]} Kg8 {[%emt 0:00:34]} 61. Qb3+ {[%emt 0:01:53]} Kg7 {[%emt 0:00:33]} 62. Kf1 {[%emt 0:00:16]} Qa5 {[%emt 0:01:25]} 63. Qb7+ {[%emt 0:00:17]} Kh6 {[%emt 0:00:11]} 64. Qc6+ {[%emt 0:00:20]} Kg5 {[%emt 0:00:25]} 65. f4+ {[%emt 0:00:51]} Kf5 {[%emt 0:02:25][%cal Oa5e1]} 66. Qc8+ {[%emt 0:00:47]} Kf6 {[%emt 0:01:50]} 67. Qh8+ {[%emt 0:01:55]} Kf7 {[%emt 0:00:22]} 68. Qh7+ {[%emt 0:00:57]} Kf6 {[%emt 0:00:05]} 69. Qh6+ {[%emt 0:00:26]} ({Resist} 69. Qh4+ Kf7 70. Qh7+ (70. Qxg4 Qa1+ 71. Kf2 Qd4+ 72. Kf1 Qa1+ 73. Kf2 Qd4+ 74. Kf1 Qa1+ $11) 70... Kf6 71. Qh4+ Kf7 72. Qh7+ $18 (72. Qxg4 Qa1+ 73. Kf2 Qd4+ 74. Kf1 Qa1+ 75. Kf2 Qd4+ 76. Ke1 Qb4+ 77. Kf2 Qd4+ $11)) 69... Kf7 {[%emt 0:00:05]} 70. Qh7+ {[%emt 0:00:40]} Kf6 $1 {[%emt 0:00:06]} 71. Qh4+ {[%emt 0:00:08]} Kf7 {[%emt 0:00:05]} 72. Qxg4 $2 {[%emt 0:00:49]} (72. Kg1 $18) 72... Qa1+ $1 $11 {[%emt 0:00:49] The position is equal.} 73. Ke2 {[%emt 0:00:22]} Qb2+ {[%emt 0:00:26]} 74. Kd3 {[%emt 0:00:38]} Qb3+ {[%emt 0:00:12]} 75. Kd4 {[%emt 0:01:07]} Qb4+ {[%emt 0:00:05]} 76. Ke3 {[%emt 0:00:21]} Qc3+ {[%emt 0:00:14]} 77. Kf2 {[%emt 0:00:04]} Qd4+ {[%emt 0:00:08]} 78. Kf1 {[%emt 0:00:16]} Qa1+ $1 {[%emt 0:00:04]} 79. Kf2 {[%emt 0:00:40]} Qd4+ {[%emt 0:00:09]} 80. Ke1 {[%emt 0:00:16] Black must now prevent Qh5+.} Qc3+ {[%emt 0:00:09] Black defended with fortune.  Weighted Error Value: White=0.27 (precise) /Black=0.51} 1/2-1/2

[Event "FIDE WY-U16 Olympiad 2022"]
[Site "Nakhchivan"]
[Date "2022.10.05"]
[Round "4.18"]
[White "Jannatul, Ferdousi"]
[Black "Schnell, Sebastian Narayana"]
[Result "1/2-1/2"]
[ECO "A45"]
[WhiteElo "1624"]
[BlackElo "1847"]
[Annotator "NA RC COMBH"]
[PlyCount "270"]
[EventDate "2022.10.02"]
[EventType "team-tourn"]
[EventCountry "AZE"]
[SourceTitle "playchess.com"]
[Source "ChessBase"]
[SourceQuality "1"]
[WhiteTeam "Bangladesh"]
[BlackTeam "Panama"]
[WhiteTeamCountry "BAN"]
[BlackTeamCountry "PAN"]
[TimeControl "40/5400+30:1800+30"]

1. d4 {[%emt 0:00:03]} Nf6 {[%emt 0:00:12]} 2. Bf4 {[%emt 0:00:11]} c5 {[%emt 0:00:42]} 3. e3 {[%emt 0:00:26]} d5 {[%emt 0:01:05]} 4. Nf3 {[%emt 0:00:25]} Nc6 {[%emt 0:00:16]} 5. c3 {[%emt 0:04:19]} Qb6 {[%emt 0:00:23]} 6. Qb3 {[%emt 0:04:50]} c4 {[%emt 0:00:07]} 7. Qxb6 {[%emt 0:01:58]} axb6 {[%emt 0:00:06]} 8. Na3 {[%emt 0:03:26]} Bf5 {[%emt 0:04:30]} 9. Nh4 {[%emt 0:10:41]} Bg6 {[%emt 0:01:06]} 10. Nxg6 {[%emt 0:04:14]} hxg6 {[%emt 0:01:53]} 11. Nc2 {[%emt 0:02:32]} e6 {[%emt 0:01:07]} 12. Be2 {[%emt 0:04:15]} Kd7 {[%emt 0:04:22]} 13. O-O {[%emt 0:04:26]} Ne4 {[%emt 0:00:42]} 14. f3 {[%emt 0:06:42]} Nf6 {[%emt 0:02:39]} 15. e4 {[%emt 0:04:53]} b5 {[%emt 0:01:21]} 16. e5 {[%emt 0:07:43]} Ne8 {[%emt 0:00:42]} 17. Bd2 {[%emt 0:01:10]} Nc7 {[%emt 0:00:54]} 18. f4 {[%emt 0:04:03]} Be7 {[%emt 0:01:12]} 19. a3 {[%emt 0:11:55]} Na5 {[%emt 0:04:05]} 20. Rae1 {[%emt 0:02:42]} Rh7 {[%emt 0:05:14]} 21. Be3 {[%emt 0:02:48]} Rah8 {[%emt 0:04:27]} 22. h3 {[%emt 0:00:38]} Na8 {[%emt 0:00:51]} 23. Ra1 {[%emt 0:10:53]} Nb6 {[%emt 0:02:11]} 24. Ra2 {[%emt 0:01:21]} Ra8 {[%emt 0:00:47]} 25. Raa1 {[%emt 0:05:52]} Rhh8 {[%emt 0:00:36]} 26. Rab1 {[%emt 0:00:28]} Nc6 {[%emt 0:03:52]} 27. Ra1 {[%emt 0:00:31]} Ra7 {[%emt 0:01:35]} 28. Rfe1 {[%emt 0:00:30]} Rha8 {[%emt 0:00:41]} 29. Rf1 {[%emt 0:00:29]} Na4 {[%emt 0:03:17]} 30. Rab1 {[%emt 0:00:12]} Rh8 {[%emt 0:02:25]} 31. Rfe1 {[%emt 0:00:41]} f5 {[%emt 0:00:38]} 32. Rf1 {[%emt 0:00:36]} Nd8 {[%emt 0:00:34]} 33. Rf3 {[%emt 0:00:32]} Nf7 {[%emt 0:01:15]} 34. g4 {[%emt 0:00:31]} fxg4 {[%emt 0:03:27]} 35. hxg4 {[%emt 0:00:02]} Rh4 {[%emt 0:00:31]} 36. g5 {[%emt 0:00:59]} Ra8 {[%emt 0:00:43]} 37. Rg3 {[%emt 0:00:31]} Rah8 {[%emt 0:00:53]} 38. Kf2 {[%emt 0:00:26]} Rh1 {[%emt 0:02:16]} 39. Rgg1 {[%emt 0:00:18]} R1h7 {[%emt 0:04:01]} 40. Bd1 {[%emt 0:00:43]} Nd8 {[%emt 0:01:54]} 41. Ne1 {[%emt 0:30:31]} Ke8 {[%emt 0:31:13]} 42. Nf3 {[%emt 0:00:24]} Kf7 {[%emt 0:04:06]} 43. Bxa4 {[%emt 0:00:29]} bxa4 {[%emt 0:00:02]} 44. Kg2 {[%emt 0:00:20]} Nc6 {[%emt 0:02:24]} 45. Rh1 {[%emt 0:00:36]} Rxh1 {[%emt 0:00:47]} 46. Rxh1 {[%emt 0:00:03]} Ra8 {[%emt 0:00:14]} 47. Kf2 {[%emt 0:01:06]} Ra6 {[%emt 0:01:27]} 48. Ke2 {[%emt 0:00:32]} Rb6 {[%emt 0:01:07]} 49. Bc1 {[%emt 0:00:15]} Bf8 {[%emt 0:02:55]} 50. Kd1 {[%emt 0:00:39]} Ne7 {[%emt 0:01:12]} 51. Nh4 {[%emt 0:00:31]} Ra6 {[%emt 0:01:01]} 52. Kc2 {[%emt 0:00:32]} Ra8 {[%emt 0:00:15]} 53. Be3 {[%emt 0:00:32]} Rd8 {[%emt 0:00:51]} 54. Bf2 {[%emt 0:00:29]} Re8 {[%emt 0:00:48]} 55. Rh2 {[%emt 0:00:25]} Nc8 {[%emt 0:00:56]} 56. Ng2 {[%emt 0:00:30]} Be7 {[%emt 0:00:11]} 57. Ne3 {[%emt 0:00:36]} Bd8 {[%emt 0:00:24]} 58. Rh1 {[%emt 0:00:28]} Kg8 {[%emt 0:00:48]} 59. Rh3 {[%emt 0:00:30]} Rf8 {[%emt 0:00:14]} 60. Bg3 {[%emt 0:00:30]} Na7 {[%emt 0:00:44]} 61. Kb1 {[%emt 0:00:35]} Nb5 {[%emt 0:01:38]} 62. Ng2 {[%emt 0:00:31]} Be7 {[%emt 0:00:44]} 63. Be1 {[%emt 0:00:25]} Nc7 {[%emt 0:02:35]} 64. Rg3 {[%emt 0:00:29]} Na6 {[%emt 0:00:43]} 65. Bd2 {[%emt 0:00:32]} Nb8 {[%emt 0:00:16]} 66. Kc2 {[%emt 0:00:27]} Nc6 {[%emt 0:00:17]} 67. Rh3 {[%emt 0:00:32]} Na5 {[%emt 0:00:22]} 68. Be3 {[%emt 0:00:34]} Nb3 {[%emt 0:00:10]} 69. Rg3 {[%emt 0:00:24]} Kf7 {[%emt 0:01:51]} 70. Rh3 {[%emt 0:00:26]} Bd8 {[%emt 0:00:11]} 71. Ne1 {[%emt 0:00:38]} Na5 {[%emt 0:01:02]} 72. Ng2 {[%emt 0:00:28]} Nc6 {[%emt 0:00:11]} 73. Bd2 {[%emt 0:00:32]} Ne7 {[%emt 0:01:14]} 74. Ne3 {[%emt 0:00:22]} Kg8 {[%emt 0:00:09]} 75. Rh4 {[%emt 0:00:38]} Bc7 {[%emt 0:01:15]} 76. Rg4 {[%emt 0:00:29]} Bb6 {[%emt 0:00:19]} 77. Rh4 {[%emt 0:00:29]} Kf7 {[%emt 0:00:10]} 78. Bc1 {[%emt 0:00:27]} Nc6 {[%emt 0:00:16]} 79. Nd1 {[%emt 0:00:36]} Ba7 {[%emt 0:01:41]} 80. Bd2 {[%emt 0:00:26]} Ke7 {[%emt 0:01:28]} 81. Rh7 {[%emt 0:00:34]} Kf7 {[%emt 0:00:10]} 82. Rh4 {[%emt 0:00:29]} Kg8 {[%emt 0:00:12]} 83. Bc1 {[%emt 0:00:20]} Rb8 {[%emt 0:04:54]} 84. Rh3 {[%emt 0:00:34]} Bb6 {[%emt 0:01:49]} 85. Rh4 {[%emt 0:00:34]} Rf8 {[%emt 0:00:25]} 86. Bd2 {[%emt 0:00:29]} Ne7 {[%emt 0:00:46]} 87. Ne3 {[%emt 0:00:24]} Kf7 {[%emt 0:00:31]} 88. Bc1 {[%emt 0:00:33]} Bd8 {[%emt 0:00:48]} 89. Bd2 {[%emt 0:00:21]} Ng8 {[%emt 0:00:28]} 90. Rh8 {[%emt 0:00:46]} Ne7 {[%emt 0:00:25]} 91. Rxf8+ {[%emt 0:00:14]} Kxf8 {[%emt 0:00:05]} 92. Be1 {[%emt 0:00:23]} Kf7 {[%emt 0:00:09]} 93. Bg3 {[%emt 0:00:27]} Nf5 {[%emt 0:00:07]} 94. Nf1 {[%emt 0:00:54]} Bb6 {[%emt 0:01:09]} 95. Bf2 {[%emt 0:00:28]} Ke8 {[%emt 0:00:32]} 96. Nh2 {[%emt 0:00:34]} Kd7 {[%emt 0:00:35]} 97. Nf3 {[%emt 0:00:23]} Kc6 {[%emt 0:00:28]} 98. Nh4 {[%emt 0:00:28]} Ne7 {[%emt 0:00:02]} 99. Nf3 {[%emt 0:00:29]} Ba7 {[%emt 0:01:42]} 100. Nh4 {[%emt 0:00:20]} Kd7 {[%emt 0:01:00]} 101. Nf3 {[%emt 0:00:38]} Ke8 {[%emt 0:00:02]} 102. Nh4 {[%emt 0:00:31]} Kf7 {[%emt 0:00:01]} 103. Nf3 {[%emt 0:00:35]} Nc6 {[%emt 0:00:10]} 104. Nd2 {[%emt 0:00:34]} Bb6 {[%emt 0:00:24]} 105. Nf3 {[%emt 0:00:23]} Bd8 {[%emt 0:00:12]} 106. Nd2 {[%emt 0:00:34]} Be7 {[%emt 0:00:09]} 107. Nf3 {[%emt 0:00:31]} Na7 {[%emt 0:00:04]} 108. Nd2 {[%emt 0:00:30]} Ke8 {[%emt 0:00:21]} 109. Nf3 {[%emt 0:00:18]} Nb5 {[%emt 0:00:07]} 110. Be1 {[%emt 0:00:37]} b6 {[%emt 0:00:51]} 111. Nh4 {[%emt 0:00:37]} Kf7 {[%emt 0:00:01]} 112. Nf3 {[%emt 0:00:24]} Na7 {[%emt 0:00:47]} 113. Bd2 {[%emt 0:00:26]} Nc6 {[%emt 0:00:06]} 114. Be1 {[%emt 0:00:21]} Bd8 {[%emt 0:00:14]} 115. Bf2 {[%emt 0:00:46]} Ne7 {[%emt 0:00:05]} 116. Nh4 {[%emt 0:00:32]} Nc6 {[%emt 0:00:54]} 117. Be1 {[%emt 0:00:29]} Nb8 {[%emt 0:00:09]} 118. Bf2 {[%emt 0:00:20]} Nd7 {[%emt 0:00:04]} 119. Be1 {[%emt 0:00:27]} Nf8 {[%emt 0:00:11]} 120. Nf3 {[%emt 0:00:28]} Be7 {[%emt 0:00:48]} 121. Bd2 {[%emt 0:00:32]} Nd7 {[%emt 0:00:09]} 122. Be1 {[%emt 0:00:34]} Nb8 {[%emt 0:00:08]} 123. Bf2 {[%emt 0:00:23]} Na6 {[%emt 0:00:10]} 124. Be1 {[%emt 0:00:22]} Nc7 {[%emt 0:00:07]} 125. Bf2 {[%emt 0:00:28]} Nb5 {[%emt 0:00:12]} 126. Be1 {[%emt 0:00:26]} Na7 {[%emt 0:01:33]} 127. Bf2 {[%emt 0:00:13]} b5 {[%emt 0:00:56]} 128. Be1 {[%emt 0:00:20]} Nc6 {[%emt 0:00:17]} 129. Ng1 {[%emt 0:01:29]} Na5 {[%emt 0:00:42]} 130. Nf3 {[%emt 0:00:30]} Nb3 {[%emt 0:00:05]} 131. Nd2 {[%emt 0:00:27]} Na5 {[%emt 0:00:35]} 132. Nf3 {[%emt 0:00:20]} Bd8 {[%emt 0:00:05]} 133. Nd2 {[%emt 0:00:36]} Bb6 {[%emt 0:00:05]} 134. Nf3 {[%emt 0:00:18]} Nb3 {[%emt 0:00:06]} 135. Nd2 {[%emt 0:00:51]} Na5 {[%emt 0:02:31]} 1/2-1/2

[Event "FIDE WY-U16 Olympiad 2022"]
[Site "Nakhchivan"]
[Date "2022.10.05"]
[Round "4.19"]
[White "Harshad S"]
[Black "Abdukhakimov, Akbarali"]
[Result "1-0"]
[ECO "B90"]
[WhiteElo "2228"]
[BlackElo "1777"]
[Annotator "TA"]
[PlyCount "65"]
[EventDate "2022.10.02"]
[EventType "team-tourn"]
[EventCountry "AZE"]
[SourceTitle "playchess.com"]
[Source "ChessBase"]
[SourceQuality "1"]
[WhiteTeam "India"]
[BlackTeam "Uzbekistan"]
[WhiteTeamCountry "IND"]
[BlackTeamCountry "UZB"]
[TimeControl "40/5400+30:1800+30"]

{[%evp 21,65,27,33,36,32,36,79,97,79,84,142,142,144,149,144,143,142,130,192,191,218,225,229,233,370,379,382,379,369,341,315,324,293,286,515,373,354,339,409,336,362,356,350,322,29998,29999]} 1. e4 {[%emt 0:00:10]} c5 {[%emt 0:00:14]} 2. Nf3 {[%emt 0:00:11]} d6 {[%emt 0:00:07]} 3. d4 {[%emt 0:00:08]} cxd4 {[%emt 0:00:08]} 4. Nxd4 {[%emt 0:00:05]} Nf6 {[%emt 0:00:07]} 5. Nc3 {[%emt 0:00:07]} a6 {[%emt 0:00:03]} 6. Nb3 {[%emt 0:00:16]} e5 {[%emt 0:00:07]} 7. Bg5 {[%emt 0:00:06]} Be6 {[%emt 0:00:05]} 8. f4 {[%emt 0:01:37]} exf4 {[%emt 0:03:44]} 9. Qd2 {[%emt 0:00:08]} Be7 {[%emt 0:08:45]} 10. Bxf4 {[%emt 0:06:11]} Nc6 {[%emt 0:18:27]} 11. O-O-O {[%emt 0:01:05]} Ne5 {[%emt 0:07:58]} 12. Nd4 {[%emt 0:03:50] B90: Sicilian Najdorf: Unusual White 6th moves, 6 Be3 Ng4 and 6 Be3 e5.} O-O {[%emt 0:09:10]} 13. g3 {[%emt 0:31:55] [#]} Re8 $146 {[%emt 0:17:20]} ({Predecessor:} 13... Bd7 14. Kb1 Rc8 15. h3 b5 16. a3 Qb6 17. g4 b4 18. axb4 Qxb4 19. g5 Rxc3 20. gxf6 {0-1 (25) Le,Q (2709)-Vachier Lagrave,M (2784) chess24.com INT 2020}) 14. Nxe6 {[%emt 0:12:59] White is better.} fxe6 {[%emt 0:00:56] [#]} 15. Bh3 $1 {[%emt 0:00:07][%cal Bf1h3,Bh3e6,Be6b3][%mdl 32]} Bf8 {[%emt 0:05:55]} (15... Qc8 $142) 16. Bxe5 $16 {[%emt 0:02:55]} dxe5 {[%emt 0:00:09] [#]} 17. Bxe6+ $1 {[%emt 0:00:12][%mdl 512]} Kh8 {[%emt 0:00:04] And now ...Qxd2+ would win.} 18. Qe2 {[%emt 0:00:28]} Qa5 {[%emt 0:02:27]} 19. Bb3 {[%emt 0:01:22]} Bc5 {[%emt 0:06:12]} (19... b5 $16 20. Nd5 Nxd5 21. Bxd5 Rad8) 20. g4 $18 {[%emt 0:09:57][%cal Bg3g4,Bg4g5][%mdl 32]} Bd4 {[%emt 0:05:22]} 21. g5 {[%emt 0:00:28]} Nd7 {[%emt 0:00:16]} 22. Nd5 {[%emt 0:00:38]} Nc5 {[%emt 0:01:06]} (22... Rf8 {might work better.} 23. Rhf1 Rxf1 24. Qxf1 (24. Rxf1 Rf8 $16) 24... Rf8) 23. c3 {[%emt 0:01:08]} Nxb3+ {[%emt 0:01:34]} 24. axb3 {[%emt 0:00:02]} Ba7 {[%emt 0:00:36]} 25. Rhf1 {[%emt 0:00:54] Threatens to win with Qh5.} Rf8 {[%emt 0:00:46]} 26. Rf5 {[%emt 0:06:00]} Rad8 {[%emt 0:05:37] Hoping for ...Rxf5.} 27. Rdf1 {[%emt 0:01:06]} ({Not} 27. Rxe5 Rf2 28. Qd3 Qa2 $11) 27... Qc5 {[%emt 0:00:09]} (27... Bc5 {is a better defense.} 28. Rxf8+ Rxf8 29. Rxf8+ Bxf8) 28. Kc2 {[%emt 0:01:05]} Rxf5 {[%emt 0:01:21]} 29. Rxf5 {[%emt 0:00:02]} Rf8 {[%emt 0:00:13] aiming for ...Rxf5.} 30. Qf3 {[%emt 0:02:48]} Kg8 {[%emt 0:00:19]} 31. b4 {[%emt 0:04:12]} Rxf5 {[%emt 0:02:24]} 32. Qxf5 {[%emt 0:01:23]} (32. bxc5 $2 {too greedy.} Rxf3 33. c6 bxc6 34. Ne7+ Kf8 35. Nxc6 Be3 $19) 32... Qb5 $2 {[%emt 0:02:10]} (32... Qf2+ $18 33. Kd3 Qxf5 34. exf5 Kf7) 33. Ne7+ {[%emt 0:00:17] White took control after the opening.  Weighted Error Value: White=0.15 (very precise) /Black=0.56} 1-0